bitfinex/quotes_ETHUSD_20250414
["timestamp","ask_amount","ask_price","bid_price","bid_amount"]
[1744658493031,48.3414,1640.2,1639.9,6.09781]
[1744658493192,47.544,1640.2,1640.0,6.09731]
[1744658493380,5.49,1640.3,1640.1,6.09718]
[1744658493587,5.49,1640.3,1640.1,12.19426]
[1744658493782,4.06319246,1640.4,1640.1,1.28039323]
[1744658494118,4.06319246,1640.4,1640.2,12.19328]
[1744658494317,18.5098,1640.6,1640.2,12.25424144]
[1744658494521,6.09586,1640.5,1640.2,6.15744144]
[1744658494687,12.19179,1640.5,1640.2,6.09648]
[1744658494889,12.19175,1640.5,1640.2,6.09648]
[1744658495188,6.0961,1640.4,1640.1,6.0971]
[1744658495394,6.0961,1640.4,1640.0,12.19492]
[1744658495625,6.0961,1640.4,1640.1,6.09703]
[1744658495781,12.19247,1640.4,1640.0,6.09739]
[1744658495980,1.851035,1640.5,1639.9,6.92946]
[1744658495981,7.946875,1640.5,1639.9,6.92946]
[1744658496182,6.09584,1640.5,1640.2,12.19335]
[1744658496481,12.41395,1640.6,1640.3,6.09635]
[1744658496818,6.3186,1640.6,1640.2,6.09666]
[1744658496990,12.41403,1640.6,1640.2,6.09666]
[1744658497516,12.1918,1640.5,1640.2,6.09666]
[1744658498020,12.19264,1640.4,1640.0,16.19506]
[1744658498191,1.85104,1640.5,1640.0,4.0]
[1744658498192,7.94674,1640.5,1640.0,4.0]
[1744658498394,6.09701,1640.2,1639.9,6.09782]
[1744658499327,6.91416,1640.3,1640.0,6.09755]
[1744658499494,0.8177,1640.5,1640.2,6.09646]
[1744658499699,2.77534,1640.5,1640.2,6.15742141]
[1744658499901,8.87117,1640.5,1640.2,6.09646]
[1744658500292,14.96707,1640.5,1640.2,6.09646]
[1744658500488,2.77534,1640.5,1640.1,6.09708]
[1744658500729,12.1926,1640.4,1640.1,6.09708]
[1744658501026,14.96698,1640.5,1640.1,6.09707]
[1744658501201,8.87112,1640.5,1640.1,6.09707]
[1744658501520,2.77534,1640.5,1640.0,6.89894]
[1744658501729,6.09662,1640.3,1639.9,6.09789]
[1744658502028,0.7529,1640.6,1640.4,6.09601]
[1744658502229,6.09582,1640.5,1640.1,6.09709]
[1744658502529,12.19188,1640.5,1640.1,12.19414]
[1744658502830,6.09582,1640.5,1640.2,6.09681]
[1744658503032,6.0963,1640.4,1640.1,6.09705]
[1744658503237,6.2409,1640.4,1639.9,6.0977]
[1744658503392,6.09718,1640.1,1640.0,4.0]
[1744658503592,6.84828,1640.1,1640.0,4.0]
[1744658503800,6.09788,1640.0,1639.6,6.89897]
[1744658504029,6.09793,1639.9,1639.6,12.9979]
[1744658505218,6.09888,1639.7,1639.4,6.92783]
[1744658505526,0.8186,1639.8,1639.5,6.0993]
[1744658505902,6.3066,1640.0,1639.7,6.09837]
[1744658506125,6.3066,1640.0,1639.8,6.09815]
[1744658506318,6.3066,1640.0,1639.7,6.09837]
[1744658506319,5.488,1640.0,1639.7,6.15961934]
[1744658506655,1.3328,1640.2,1639.9,6.09772]
[1744658506656,0.7828,1640.2,1639.9,6.09772]
[1744658506952,6.87974,1640.2,1639.9,12.1955]
[1744658507251,6.87979,1640.2,1639.9,6.09772]
[1744658507452,12.97677,1640.2,1639.9,6.09772]
[1744658507652,6.87978,1640.2,1639.8,12.95495]
[1744658507956,12.97692,1640.2,1639.8,12.95495]
[1744658508161,6.09719,1640.1,1639.8,6.09817]
[1744658508347,6.87978,1640.2,1639.8,6.09815]
[1744658508673,6.87978,1640.2,1639.9,6.09772]
[1744658508862,5.488,1640.3,1640.0,6.09742]
[1744658509166,5.488,1640.3,1640.0,12.19484]
[1744658509354,5.488,1640.3,1640.1,6.09706]
[1744658509560,5.488,1640.3,1640.2,6.09681]
[1744658510831,6.09579,1640.5,1640.1,12.25506463]
[1744658511036,7.392246,1640.5,1640.1,12.25506463]
[1744658511374,1.296456,1640.5,1640.2,6.09668]
[1744658511576,1.296456,1640.5,1640.3,6.09643]
[1744658512072,7.392366,1640.5,1640.1,6.09709]
[1744658512675,6.09619,1640.4,1640.0,6.89965]
[1744658512975,6.8354546,1640.4,1640.0,6.89965]
[1744658513173,6.8354546,1640.4,1640.1,6.09717]
[1744658513577,6.8354546,1640.4,1640.0,6.89965]
[1744658513974,12.19262,1640.4,1640.0,12.9971]
[1744658515479,12.19242,1640.4,1640.1,6.09717]
[1744658516061,6.09738,1640.1,1639.8,0.7527]
[1744658516261,6.09772,1640.0,1639.9,4.0]
[1744658516462,6.90172,1640.0,1639.9,4.0]
[1744658516677,8.75161,1640.0,1639.9,4.0]
[1744658517389,6.09863,1639.8,1639.4,6.85234]
[1744658517591,6.09869,1639.7,1639.4,6.85234]
[1744658517883,6.09869,1639.7,1639.4,12.95201]
[1744658518062,6.09869,1639.7,1639.4,6.85247]
[1744658518263,6.09836,1639.8,1639.4,6.85237]
[1744658518478,12.19689,1639.8,1639.5,6.0994]
[1744658519469,6.0987,1639.7,1639.4,6.85237]
[1744658519670,6.72085592,1639.8,1639.4,6.85237]
[1744658519992,12.81946592,1639.8,1639.5,6.09937]
[1744658520389,6.72085592,1639.8,1639.5,6.09937]
[1744658520601,12.19607,1639.9,1639.5,12.1986]
[1744658521097,6.0985,1639.8,1639.5,6.0993]
[1744658521303,6.0985,1639.8,1639.5,12.19857]
[1744658521691,9.24149496,1640.0,1639.4,6.85247]
[1744658521692,6.09882,1639.7,1639.4,6.85247]
[1744658522057,12.19779,1639.7,1639.4,6.85247]
[1744658522556,6.14,1640.0,1639.9,6.09793]
[1744658522762,6.09733,1640.1,1639.8,6.0982]
[1744658523294,12.19467,1640.1,1639.8,6.0982]
[1744658523597,6.09718,1640.1,1639.6,6.90908]
[1744658523803,12.19707,1639.8,1639.5,6.09917]
[1744658523982,6.09756,1640.0,1639.6,4.0]
[1744658524161,12.19534,1640.0,1639.7,6.09857]
[1744658524361,12.23723,1640.1,1639.8,6.09819]
[1744658524557,12.23723,1640.1,1639.7,6.93106]
[1744658524796,6.09793,1639.9,1639.6,4.0]
[1744658524996,6.09835,1639.8,1639.5,14.3878183]
[1744658525394,6.88263,1639.9,1639.5,8.2883983]
[1744658525599,6.14,1640.1,1639.5,8.2883983]
[1744658525600,6.09766,1640.0,1639.6,6.98873608]
[1744658525774,6.09766,1640.0,1639.6,6.92774983]
[1744658526097,12.19542,1640.0,1639.7,6.09863]
[1744658526282,6.09804,1639.9,1639.5,6.85929]
[1744658526465,6.9247,1640.1,1639.5,6.85929]
[1744658526466,12.19685,1639.8,1639.5,6.85929]
[1744658526667,6.0984,1639.8,1639.5,6.85929]
[1744658526868,6.09764,1640.0,1639.7,6.09855]
[1744658527207,13.02196,1640.1,1639.8,6.09813]
[1744658527378,6.9247,1640.1,1639.9,6.09789]
[1744658527569,0.7847,1640.1,1639.9,6.09789]
[1744658527769,6.88191,1640.1,1639.7,6.09857]
[1744658528003,6.09799,1639.9,1639.6,12.19796]
[1744658528205,6.09789,1640.0,1639.6,6.09898]
[1744658528366,6.09789,1640.0,1639.7,6.0986]
[1744658528689,12.19563,1640.0,1639.6,12.19802]
[1744658528890,12.19563,1640.0,1639.6,13.63635453]
[1744658529077,6.09774,1640.0,1639.7,6.09863]
[1744658529279,12.19554,1640.0,1639.6,13.63635453]
[1744658529480,6.09796,1639.9,1639.6,7.53726453]
[1744658529776,6.09774,1640.0,1639.7,6.09866]
[1744658529980,8.787991,1640.1,1639.7,6.09866]
[1744658530904,8.787991,1640.1,1639.8,6.09829]
[1744658531126,14.885371,1640.1,1639.8,6.09829]
[1744658531829,6.09767,1640.0,1639.7,6.09858]
[1744658532037,6.09767,1640.0,1639.7,6.0986]
[1744658532038,6.9765061,1640.0,1639.7,6.0986]
[1744658532343,6.09767,1640.0,1639.7,12.19712]
[1744658532510,6.09767,1640.0,1639.7,6.09856]
[1744658532711,6.09767,1640.0,1639.6,6.09896]
[1744658532712,6.09797,1639.9,1639.6,6.09896]
[1744658532916,6.09797,1639.9,1639.6,12.1979]
[1744658533330,12.19603,1639.9,1639.6,6.09894]
[1744658533531,6.09767,1640.0,1639.5,0.7599]
[1744658533689,8.787951,1640.1,1639.6,4.0]
[1744658533890,2.690691,1640.1,1639.6,1.085927]
[1744658534127,6.88199,1640.1,1639.8,6.09799]
[1744658534335,12.97947,1640.1,1639.8,6.09799]
[1744658534832,6.88199,1640.1,1639.7,6.09867]
[1744658535043,6.0983,1639.8,1639.3,0.8318]
[1744658535190,6.10055,1639.2,1639.0,0.8318]
[1744658535524,12.20138,1639.2,1638.8,6.1019]
[1744658535726,6.10103,1639.1,1638.8,6.1019]
[1744658536224,6.10111,1639.1,1638.9,4.0]
[1744658536393,12.20223,1639.1,1638.8,6.102]
[1744658537009,6.10133,1639.0,1638.7,6.91179]
[1744658537213,6.10187,1638.9,1638.5,13.39997602]
[1744658537528,6.10202,1638.8,1638.6,4.0]
[1744658537948,6.10239,1638.7,1638.6,4.0]
[1744658538146,6.10239,1638.7,1638.5,6.48657602]
[1744658538433,0.55,1639.0,1638.5,6.10314]
[1744658538630,0.55,1639.0,1638.8,6.10197]
[1744658538799,6.10167,1638.9,1638.5,6.10314]
[1744658539002,6.10167,1638.9,1638.4,0.8131]
[1744658539003,6.10253,1638.7,1638.3,6.10376]
[1744658539202,0.8252,1639.1,1638.5,0.8183]
[1744658539519,6.9652,1639.3,1638.8,6.9202]
[1744658539725,6.10103,1639.1,1638.8,0.8183]
[1744658539889,6.10217,1638.8,1638.6,0.8112]
[1744658540086,12.2035,1638.9,1638.5,6.10295]
[1744658540391,6.10214,1638.8,1638.4,12.20683]
[1744658540586,6.2476,1639.0,1638.6,0.8112]
[1744658540829,5.49,1639.0,1638.7,12.20453]
[1744658541006,5.49,1639.0,1638.7,13.506103]
[1744658541206,5.49,1639.0,1638.7,7.403823]
[1744658541518,11.59146,1639.0,1638.7,6.10225]
[1744658542121,17.69295,1639.0,1638.6,6.91391]
[1744658542453,5.49,1639.0,1638.7,0.06101787]
[1744658542956,11.59139,1639.0,1638.7,6.10225]
[1744658543121,11.59139,1639.0,1638.6,6.91388]
[1744658543329,11.59139,1639.0,1638.6,6.91381]
[1744658543528,11.59139,1639.0,1638.7,0.06101692]
[1744658543725,11.59139,1639.0,1638.7,6.16339692]
[1744658543926,6.10215,1638.8,1638.5,6.10305]
[1744658544120,6.10215,1638.8,1638.6,4.0]
[1744658544321,6.87085,1638.9,1638.5,12.20606]
[1744658544531,5.49,1639.0,1638.7,6.88297]
[1744658544855,6.14,1639.1,1638.8,6.10195]
[1744658545230,6.88185,1639.3,1638.7,6.88306]
[1744658545429,5.491,1639.4,1639.1,6.10085]
[1744658545629,0.8277,1639.5,1639.0,0.8332]
[1744658545843,0.8277,1639.7,1639.3,6.87]
[1744658546179,6.09978,1639.5,1639.1,6.87089]
[1744658546359,6.09978,1639.5,1639.2,6.10031]
[1744658546852,6.09912,1639.6,1639.2,6.10031]
[1744658547026,13.65722,1639.7,1639.4,6.09967]
[1744658547230,11.58936,1639.8,1639.4,0.7544]
[1744658547457,11.58931,1639.8,1639.4,6.85412]
[1744658547623,6.0987,1639.7,1639.4,6.85412]
[1744658548028,6.0987,1639.7,1639.4,6.85406]
[1744658548929,6.0987,1639.7,1639.1,6.1009]
[1744658548930,6.09975,1639.5,1639.1,6.1009]
[1744658549121,6.89289,1639.6,1639.2,6.16149064]
[1744658549322,6.89289,1639.6,1639.3,6.10003]
[1744658549552,12.9921,1639.6,1639.2,12.26191064]
[1744658549758,6.89289,1639.6,1639.2,6.10053]
[1744658549963,6.09949,1639.5,1639.2,6.10039]
[1744658550166,6.09949,1639.5,1639.2,13.489965]
[1744658551066,0.7938,1639.6,1639.2,1.289185]
[1744658551237,12.19916,1639.5,1639.1,6.79143]
[1744658551568,6.0999,1639.4,1639.1,6.10083]
[1744658552161,6.0999,1639.4,1638.8,9.16504845]
[1744658552162,6.10112,1639.1,1638.8,6.91171]
[1744658552470,12.9554,1639.0,1638.9,4.0]
[1744658552653,21.001048,1639.0,1638.9,4.0]
[1744658552856,6.10369,1638.4,1638.2,0.7795]
[1744658553168,6.10318,1638.5,1638.2,6.10413]
[1744658553367,6.2858,1638.6,1638.3,6.10381]
[1744658553566,6.2858,1638.6,1638.2,0.0610353]
[1744658553567,12.38863,1638.6,1638.2,12.2084]
[1744658553780,18.49162,1638.6,1638.2,12.2084]
[1744658553933,20.340862,1638.6,1638.2,6.10415]
[1744658554134,6.10317,1638.5,1638.2,6.10415]
[1744658554939,6.10317,1638.5,1638.1,6.1546]
[1744658555137,6.10355,1638.4,1638.1,6.1546]
[1744658555738,6.10355,1638.4,1638.1,6.1545]
[1744658556129,12.20724,1638.4,1638.1,0.05]
[1744658556331,6.10322,1638.5,1638.1,0.05]
[1744658556634,14.237742,1638.6,1638.3,6.10385]
[1744658556863,14.237742,1638.6,1638.1,0.11103766]
[1744658556864,6.10366,1638.4,1638.1,6.15454]
[1744658558471,12.38871,1638.6,1638.2,6.10396]
[1744658558647,12.38871,1638.6,1638.3,6.10365]
[1744658558849,11.59291,1638.6,1638.3,12.20742]
[1744658559347,11.59291,1638.6,1638.3,6.10365]
[1744658559647,11.59291,1638.6,1638.3,12.20738]
[1744658560443,0.7685,1638.8,1638.5,6.10314]
[1744658560655,17.76976,1638.9,1638.6,6.10275]
[1744658560845,11.62976,1638.9,1638.6,6.10266]
[1744658561064,6.10214,1638.8,1638.5,6.10313]
[1744658561245,11.62966,1638.9,1638.5,12.20615]
[1744658561445,17.73151,1638.9,1638.5,13.507845]
[1744658561671,6.10212,1638.8,1638.5,13.507735]
[1744658561968,11.62966,1638.9,1638.6,6.10271]
[1744658562561,17.73146,1638.9,1638.6,6.10271]
[1744658562760,6.65234,1638.8,1638.3,13.43444146]
[1744658563078,12.20593,1638.6,1638.3,6.10378]
[1744658563451,13.03262,1638.7,1638.3,12.20752]
[1744658563651,6.93005,1638.7,1638.4,6.1035]
[1744658563850,6.93005,1638.7,1638.4,12.20691]
[1744658564065,6.10211,1638.8,1638.4,13.03861]
[1744658564266,12.20429,1638.8,1638.4,14.342381]
[1744658565241,6.10211,1638.8,1638.5,6.10299]
[1744658565443,12.4573,1638.9,1638.6,6.10263]
[1744658565863,6.3556,1638.9,1638.5,6.10299]
[1744658566068,6.10287,1638.6,1638.3,6.10371]
[1744658566468,12.20583,1638.6,1638.3,6.10371]
[1744658566880,6.10287,1638.6,1638.3,6.10371]
[1744658567174,6.10287,1638.6,1638.3,12.20748]
[1744658568785,0.55,1638.8,1638.4,6.10346]
[1744658568953,6.90941,1638.6,1638.3,6.10377]
[1744658569154,6.90941,1638.6,1638.3,12.20754]
[1744658569373,0.8064,1638.6,1638.3,12.20754]
[1744658570089,6.91608,1638.8,1638.4,6.10333]
[1744658570248,6.91608,1638.8,1638.5,12.20609]
[1744658570882,11.62976,1638.9,1638.6,6.10256]
[1744658571081,5.528,1638.9,1638.7,6.10228]
[1744658571245,5.528,1638.9,1638.7,6.10226]
[1744658571446,5.528,1638.9,1638.6,12.20542]
[1744658571644,3.44923685,1639.2,1638.7,6.10232]
[1744658571845,6.10153,1639.0,1638.7,6.10229]
[1744658572045,9.10102,1639.1,1638.8,6.10198]
[1744658572245,3.0,1639.1,1638.7,6.10229]
[1744658572569,9.10098,1639.1,1638.8,6.10187]
[1744658572971,15.2022,1639.1,1638.8,6.10187]
[1744658573284,6.10147,1639.0,1638.5,0.8074]
[1744658573471,6.10147,1639.0,1638.7,12.20444]
[1744658573649,15.20207,1639.1,1638.7,12.20444]
[1744658574383,0.55,1639.0,1638.6,6.10266]
[1744658574588,6.10207,1638.8,1638.5,6.10302]
[1744658574882,6.10207,1638.8,1638.5,12.20613]
[1744658575074,6.10207,1638.8,1638.5,6.10302]
[1744658575383,6.10207,1638.8,1638.5,12.20605]
[1744658575576,6.10207,1638.8,1638.5,6.10302]
[1744658575777,6.10207,1638.8,1638.5,12.20606]
[1744658576689,7.42768,1639.0,1638.4,6.1034]
[1744658576849,7.42768,1639.0,1638.3,0.7985]
[1744658576850,6.10272,1638.7,1638.3,0.7985]
[1744658577057,6.10288,1638.6,1638.3,6.90216]
[1744658577682,6.10288,1638.6,1638.3,13.00593]
[1744658577885,6.10288,1638.6,1638.3,6.10366]
[1744658578076,6.10315,1638.5,1638.2,6.10413]
[1744658578479,6.10284,1638.6,1638.3,6.10378]
[1744658578653,6.14,1638.8,1638.5,6.10289]
[1744658578859,6.14,1638.8,1638.1,6.15454]
[1744658578860,6.14,1638.8,1638.6,6.10265]
[1744658579058,13.146948,1638.9,1638.5,6.10304]
[1744658579261,6.10204,1638.8,1638.5,6.10304]
[1744658579792,6.10204,1638.8,1638.5,12.20605]
[1744658579954,6.3024,1638.9,1638.6,6.10264]
[1744658580154,6.3024,1638.9,1638.6,12.2053]
[1744658580475,12.40418,1638.9,1638.6,6.10264]
[1744658580657,6.10233,1638.8,1638.4,6.92576]
[1744658580857,6.10245,1638.7,1638.4,6.92576]
[1744658581068,6.10245,1638.7,1638.4,13.02916]
[1744658581267,6.10245,1638.7,1638.4,6.92576]
[1744658581769,6.10245,1638.7,1638.4,13.02915]
[1744658581966,6.10277,1638.6,1638.4,0.8224]
[1744658582170,6.10245,1638.7,1638.4,6.92589]
[1744658582491,6.3024,1638.9,1638.6,6.10262]
[1744658582950,12.40415,1638.9,1638.5,6.16409809]
[1744658583297,6.1025,1638.7,1638.4,6.92576]
[1744658583449,6.10303,1638.6,1638.3,6.10387]
[1744658583653,6.10303,1638.6,1638.3,12.20755]
[1744658583898,0.55,1638.8,1638.3,12.20755]
[1744658583899,12.2043,1638.8,1638.4,12.20688]
[1744658584067,6.10242,1638.7,1638.4,12.2068]
[1744658584658,6.10242,1638.7,1638.4,6.10339]
[1744658584859,6.10242,1638.7,1638.4,12.20678]
[1744658585187,6.10242,1638.7,1638.4,12.20679]
[1744658585491,12.20503,1638.7,1638.4,6.10339]
[1744658585793,13.6106,1638.7,1638.4,6.10339]
[1744658586501,7.50799,1638.7,1638.4,6.10339]
[1744658586669,7.50799,1638.7,1638.4,6.10338]
[1744658586998,12.24131,1639.0,1638.7,0.7988]
[1744658587161,6.10197,1638.9,1638.5,6.90181]
[1744658587361,12.20452,1638.8,1638.5,0.7988]
[1744658587607,6.10263,1638.7,1638.3,13.00632]
[1744658587760,6.93242,1638.8,1638.5,6.10312]
[1744658588097,6.10212,1638.8,1638.5,6.10312]
[1744658588886,6.14,1639.0,1638.5,6.10312]
[1744658588887,6.93136,1639.1,1638.7,6.10215]
[1744658589093,11.62963,1639.2,1638.8,6.10196]
[1744658589260,6.10115,1639.1,1638.8,6.10196]
[1744658589765,6.10115,1639.1,1638.7,6.1023]
[1744658589959,6.10129,1639.0,1638.7,12.89467]
[1744658590293,6.10136,1639.0,1638.7,6.79237]
[1744658590870,12.20295,1639.0,1638.7,6.79237]
[1744658591100,6.10194,1638.9,1638.6,0.7988]
[1744658591260,6.10194,1638.9,1638.6,6.96234034]
[1744658591791,6.10181,1638.9,1638.6,6.90132]
[1744658591999,12.20362,1638.9,1638.6,6.90132]
[1744658592387,6.10181,1638.9,1638.6,6.90132]
[1744658593357,6.10181,1638.9,1638.6,0.7988]
[1744658593557,0.55,1638.8,1638.4,0.8044]
[1744658593795,6.10287,1638.6,1638.4,0.8044]
[1744658594000,6.10356,1638.4,1638.1,0.05]
[1744658594294,6.10356,1638.4,1638.3,4.0]
[1744658595100,6.65356,1638.4,1638.3,4.0]
[1744658595395,6.10426,1638.2,1638.1,0.05]
[1744658595694,14.093372,1638.4,1638.1,0.05]
[1744658595897,6.10426,1638.2,1638.1,0.05]
[1744658596108,6.65426,1638.2,1638.1,0.05]
[1744658597385,6.65426,1638.2,1638.1,1e-05]
[1744658597386,20.02067282,1638.2,1638.1,1e-05]
[1744658597700,20.02067282,1638.2,1637.5,0.3966834]
[1744658597701,6.10624,1637.7,1637.5,0.3966834]
[1744658598102,18.53022,1637.8,1637.5,0.3966834]
[1744658598305,6.10625,1637.7,1637.5,0.3966834]
[1744658599187,6.10649,1637.6,1637.5,0.3966834]
[1744658599504,0.55,1637.7,1637.5,0.3966834]
[1744658599708,1.352429,1637.7,1637.5,0.3966834]
[1744658599919,5.506,1637.8,1637.6,6.10624]
[1744658600069,6.3137,1638.2,1638.0,6.10481]
[1744658600273,6.3137,1638.2,1637.7,6.92272]
[1744658600274,12.41805,1638.2,1637.9,6.10534]
[1744658600473,6.10492,1638.1,1637.7,6.92258]
[1744658600711,6.10492,1638.1,1637.7,6.92257]
[1744658601006,12.20974,1638.1,1637.7,6.92257]
[1744658601377,6.747805,1638.2,1637.8,6.1054]
[1744658601576,11.61046,1638.2,1637.9,6.10521]
[1744658601777,5.506,1638.2,1637.7,6.92269]
[1744658602006,6.10481,1638.1,1637.7,13.02869]
[1744658602192,12.20969,1638.1,1637.7,13.02869]
[1744658602531,6.10504,1638.0,1637.7,6.9226]
[1744658602714,6.715924,1637.9,1637.6,6.1064]
[1744658603213,0.610504,1637.9,1637.7,6.10605]
[1744658603414,12.21028,1638.0,1637.7,6.10605]
[1744658604123,6.10507,1638.0,1637.7,6.10605]
[1744658605421,6.10507,1638.0,1637.7,6.10598]
[1744658605619,17.7503,1638.2,1637.9,6.10521]
[1744658605790,17.75036,1638.2,1637.8,6.8991]
[1744658605996,7.879786,1638.1,1637.7,6.10596]
[1744658606431,6.10512,1638.0,1637.7,6.10608]
[1744658606834,7.879766,1638.1,1637.7,6.10601]
[1744658607141,17.75027,1638.2,1637.9,6.10527]
[1744658607310,17.75027,1638.2,1637.9,6.10524]
[1744658607509,11.61027,1638.2,1637.9,6.10524]
[1744658607812,6.14,1638.4,1638.0,0.06105081]
[1744658608011,6.10489,1638.1,1637.7,6.10597]
[1744658608213,6.10489,1638.1,1637.8,6.10574]
[1744658608214,12.99297,1638.1,1637.8,6.10574]
[1744658608601,0.7832,1638.1,1637.9,6.10535]
[1744658608813,0.7832,1638.3,1638.0,6.10483]
[1744658609007,12.20758,1638.4,1638.0,6.92319]
[1744658609201,6.10394,1638.3,1638.0,6.92319]
[1744658609742,6.10394,1638.3,1638.0,13.02808]
[1744658610317,6.10394,1638.3,1638.0,0.8183]
[1744658610644,6.6539,1638.3,1638.0,6.10499]
[1744658610841,0.55,1638.3,1637.9,6.10532]
[1744658611056,6.10442,1638.2,1637.9,6.10532]
[1744658611430,6.10442,1638.2,1637.8,13.0296]
[1744658611431,6.10464,1638.1,1637.8,13.0296]
[1744658612866,6.10464,1638.1,1637.8,13.02958]
[1744658613072,6.8876,1638.2,1637.9,6.10536]
[1744658613437,6.8876,1638.2,1637.9,6.10525]
[1744658614264,12.99209,1638.2,1637.9,6.10525]
[1744658614469,6.8875,1638.2,1637.6,6.10613]
[1744658614633,0.55,1638.1,1637.6,6.10613]
[1744658614838,0.7944,1637.9,1637.5,7.2759034]
[1744658615170,6.10649,1637.6,1637.5,0.3966834]
[1744658615373,6.656,1637.8,1637.5,0.3966834]
[1744658615571,6.10649,1637.6,1637.5,0.3966834]
[1744658615871,6.89129,1637.6,1637.5,0.3966834]
[1744658616871,6.9248,1638.0,1637.5,1.1881834]
[1744658617082,3.7848,1638.2,1638.0,6.10483]
[1744658617277,6.14,1638.6,1638.3,6.10377]
[1744658617459,6.10303,1638.6,1638.2,6.1041]
[1744658617638,0.55,1638.5,1638.2,6.1041]
[1744658617845,18.53526,1638.7,1638.3,6.1037]
[1744658618233,6.1028,1638.6,1638.3,6.1037]
[1744658618439,6.2928,1638.7,1638.4,6.10348]
[1744658618670,5.508,1638.7,1638.4,6.10348]
[1744658618880,5.508,1638.7,1638.1,0.7915]
[1744658619180,6.10294,1638.6,1638.3,6.10383]
[1744658619553,6.10294,1638.6,1638.2,6.10401]
[1744658619876,5.508,1638.7,1638.1,0.7915]
[1744658620043,11.6106,1638.7,1638.3,6.10356]
[1744658620242,11.6106,1638.7,1638.4,6.10334]
[1744658620476,6.10335,1638.5,1638.1,6.89594]
[1744658620648,6.10335,1638.5,1638.2,6.10408]
[1744658621276,12.20575,1638.6,1638.2,12.20823]
[1744658621581,6.1028,1638.6,1638.3,6.10381]
[1744658621880,11.61046,1638.7,1638.3,6.10375]
[1744658622071,6.10278,1638.6,1638.3,6.10375]
[1744658622382,5.508,1638.7,1638.4,6.10331]
[1744658622957,17.71301,1638.7,1638.4,6.10331]
[1744658623158,20.176791,1638.7,1638.4,6.10331]
[1744658623438,20.176811,1638.7,1638.4,6.10331]
[1744658623980,7.971781,1638.7,1638.4,12.20672]
[1744658624282,11.61063,1638.7,1638.4,6.93281]
[1744658624885,11.61063,1638.7,1638.2,6.10391]
[1744658624886,6.10305,1638.6,1638.2,6.10391]
[1744658625086,6.10324,1638.5,1638.2,6.10391]
[1744658625582,6.88615,1638.6,1638.3,6.10381]
[1744658625778,0.7831,1638.6,1638.3,12.20756]
[1744658626078,0.7831,1638.6,1638.1,6.8554]
[1744658626282,11.61048,1638.7,1638.4,6.10334]
[1744658626487,17.71307,1638.7,1638.4,6.10334]
[1744658627486,17.71307,1638.7,1638.3,6.10381]
[1744658627787,6.10285,1638.6,1638.2,6.10415]
[1744658627974,5.508,1638.7,1638.2,6.10414]
[1744658628177,12.75663,1638.6,1638.3,6.10381]
[1744658628548,6.10318,1638.5,1638.2,6.10414]
[1744658629378,6.10318,1638.5,1638.2,12.20827]
[1744658629590,6.10318,1638.5,1638.2,6.10413]
[1744658630099,6.65357,1638.6,1638.3,6.10385]
[1744658630285,0.5508,1638.6,1638.3,6.10378]
[1744658630486,5.508,1638.7,1638.4,6.1035]
[1744658630688,5.508,1638.7,1638.5,6.9049]
[1744658630888,12.24177,1638.9,1638.6,6.10277]
[1744658631386,6.10236,1638.8,1638.5,0.802]
[1744658631589,6.10236,1638.8,1638.5,6.90512]
[1744658631789,12.24174,1638.9,1638.5,6.90512]
[1744658631963,7.326254,1638.8,1638.5,13.00802]
[1744658632169,1.224174,1638.8,1638.6,6.10275]
[1744658633393,13.428474,1638.8,1638.5,6.90504]
[1744658633550,1.224174,1638.8,1638.5,0.802]
[1744658633897,1.224174,1638.8,1638.6,6.10267]
[1744658634196,6.10168,1638.9,1638.6,6.10263]
[1744658634391,21.57608,1639.0,1638.6,12.20529]
[1744658634562,6.10183,1638.9,1638.6,6.10263]
[1744658634764,12.20374,1638.9,1638.6,6.10263]
[1744658634956,12.20364,1638.9,1638.6,6.10263]
[1744658635171,12.20368,1638.9,1638.6,6.10263]
[1744658635354,12.2036,1638.9,1638.6,6.10263]
[1744658635585,6.10179,1638.9,1638.6,6.10263]
[1744658635782,12.20365,1638.9,1638.6,6.10263]
[1744658635987,15.47446,1639.0,1638.6,12.20528]
[1744658636181,6.10167,1638.9,1638.6,12.20527]
[1744658636411,6.10167,1638.9,1638.6,6.10263]
[1744658636616,21.57594,1639.0,1638.6,6.10263]
[1744658636891,8.569,1639.0,1638.8,6.10193]
[1744658637094,5.569,1639.0,1638.8,6.10193]
[1744658637290,5.569,1639.0,1638.9,6.10165]
[1744658637526,5.569,1639.0,1638.8,12.20386]
[1744658637834,5.568,1639.3,1639.2,6.10053]
[1744658638236,6.88478,1639.6,1639.1,6.88919]
[1744658638237,6.09983,1639.4,1639.1,6.88919]
[1744658638532,12.19987,1639.4,1639.1,6.88919]
[1744658638734,6.09946,1639.5,1639.1,6.88924]
[1744658639035,6.0998,1639.4,1639.1,6.88918]
[1744658640240,7.344746,1639.5,1639.2,6.10051]
[1744658640419,18.55228,1639.6,1639.2,12.20094]
[1744658640600,12.19919,1639.5,1639.1,12.99]
[1744658640797,6.09985,1639.4,1639.1,6.8892]
[1744658641108,6.09996,1639.4,1639.1,6.88927]
[1744658641312,6.1002,1639.3,1639.1,0.7884]
[1744658642195,0.609996,1639.4,1639.1,6.88929]
[1744658642434,6.09952,1639.5,1639.2,12.20079]